Cogmind - Beta 11 X7 @@@ ROGUE MODE // 2021.10.13 @ 20:16:49 Player: IceBox Result: Destroyed by 8R-AWN with 8R-AWN's Boregun Performance ------------- Evolutions (0) 0 Regions Visited (3) 600 Robots Destroyed (23) 115 Value Destroyed (386) 386 Prototype IDs (24) 480 Alien Tech Used (0) 0 Bonus (146) 146 TOTAL SCORE: 1727 Bonus ------- Follower Combat Kills 21 Aligned with FarCom 300 Friendly Fire -175 Cogmind --------- Core Integrity 0/250 Matter 8/300 Energy 160/160 System Corruption 12% Temperature Cool (0) Movement Rolling (160) Ox4 Location -10/Exiles Parts ------- > --- POWER (1) -------- Light Nuclear Core > --- PROPULSION (2) --- Compact Wheel > --- UTILITY (2) ------ Large Storage Unit High-capacity Storage Unit > --- WEAPON (2) ------- 8R-AWN's Boregun Improved Light Cannon > --- INVENTORY (20) --- Ion Engine Light Ion Engine Light Nuclear Core Large Storage Unit Large Battery (200) Latent Energy Streamer Beam Cannon Beam Cannon Guided Plasma Cannon Improved Light Cannon Grenade Launcher Grenade Launcher Rocket Launcher Peak State ------------ > --- POWER ------------ Light Nuclear Core > --- PROPULSION ------- Wheel Compact Wheel > --- UTILITY ---------- Large Storage Unit High-capacity Storage Unit > --- WEAPON ----------- 8R-AWN's Boregun Improved Light Cannon > --- INVENTORY -------- Ion Engine Light Ion Engine Light Nuclear Core Large Storage Unit Large Battery Latent Energy Streamer Beam Cannon Beam Cannon Guided Plasma Cannon Improved Light Cannon Grenade Launcher Grenade Launcher Rocket Launcher [Rating: 22] Favorites ----------- Power Ion Engine Engine Ion Engine Power Core Light Nuclear Core Propulsion Compact Wheel Treads Light Treads Leg Aluminum Leg Wheel Compact Wheel Utility High-capacity Storage Unit Device Cooling System Storage High-capacity Storage Unit Protection Medium Armor Plating Weapon Improved Light Cannon Energy Cannon Beam Cannon Ballistic Gun Assault Rifle Ballistic Cannon Improved Light Cannon Launcher Grenade Launcher Build | -11 -10 -10 -10 ------- Run | Scr Mat Min Exi Slots Evolved . | . . . . Power . | . . . . Propulsion . | . . . . Utility . | . . . . Weapon . | . . . . Parts Attached 48 | 2 19 8 19 Power 3 | . . . 3 Engine 2 | . . . 2 Core 1 | . . . 1 Reactor . | . . . . Propulsion 14 | 2 2 5 5 Treads 7 | 1 1 2 3 Leg . | . . . . Wheel 7 | 1 1 3 2 Hover . | . . . . Flight . | . . . . Utility 8 | . 6 1 1 Device 1 | . 1 . . Storage 4 | . 2 1 1 Processor . | . . . . Hackware . | . . . . Protection 3 | . 3 . . Artifact . | . . . . Weapon 23 | . 11 2 10 Energy Gun . | . . . . Energy Cannon 6 | . . 1 5 Ballistic Gun 5 | . 3 . 2 Ballistic Cannon 10 | . 7 . 3 Launcher 2 | . 1 1 . Special Weapon . | . . . . Impact Weapon . | . . . . Slashing Weapon . | . . . . Piercing Weapon . | . . . . Special Melee Weapon . | . . . . Unidentified Prototypes 3 | . . . 3 Parts Lost 9 | . . 3 6 Power 1 | . . . 1 Propulsion 5 | . . 1 4 Utility 1 | . . 1 . Weapon 2 | . . 1 1 Highest Loss Streak 4 | . . 3 4 Average Slot Usage (%) 86 | . 98 93 74 Engine 13 | . 14 14 13 Treads 6 | . 14 3 2 Wheel 21 | . 14 24 23 Storage 14 | . 14 14 14 Protection 5 | . 12 8 . Energy Cannon 4 | . . 5 6 Ballistic Gun 1 | . 3 . 1 Ballistic Cannon 10 | . 24 9 1 Launcher 7 | . . 12 9 Naked Turns . | . . . . Heaviest Build 75 | 13 40 59 75 Greatest Support 40 | 20 16 40 40 Greatest Overweight (x) 5 | . 2 2 5 Average Overweight (x) 1 | . 1 1 1 Largest Inventory Capacity 20 | 8 15 20 20 Average Capacity 16 | 8 9 19 20 Most Carried 20 | 6 15 17 20 Average Carried 15 | 6 9 16 18 Final Capacity 20 | 8 15 20 20 Final Carried 17 | 6 15 17 13 Class Distribution -------------------- 100% | Mutant Dominant Class ---------------- Mutant | -10/Materials Mutant | -10/Mines Mutant | -10/Exiles Resources | -11 -10 -10 -10 ----------- Run | Scr Mat Min Exi Matter Collected 700 | 201 294 91 114 Remotely . | . . . . Salvage Created 363 | . 244 79 40 Parts 26 | . 19 7 . Haulers Intercepted 1 | . 1 . . Recyclers Shooed 1 | . 1 . . Parts Field Recycled . | . . . . Retrieved Matter . | . . . . Parts Self-Destructed . | . . . . Prevented . | . . . . Kills | -11 -10 -10 -10 ------- Run | Scr Mat Min Exi Combat Hostiles Destroyed 18 | . 10 6 2 Guns 3 | . 3 . . Cannons 4 | . 4 . . AOE 11 | . 3 6 2 Classes Destroyed 7 | . 5 1 1 Worker 1 | . . 1 . Hauler 1 | . 1 . . Operator 1 | . 1 . . Watcher 3 | . 3 . . Swarmer 12 | . 6 6 . Grunt 5 | . 4 1 . Assembled 2 | . . . 2 Best Kill Streak 4 | . 4 4 1 Combat Bots Only 3 | . 3 3 1 Max Kills in Single Turn 2 | . 2 2 1 Gunslinging . | . . . . Exploded 2 | . 2 2 1 Melee . | . . . . Uniques/NPCs Destroyed 1 | . . . 1 EX-BIN (-10/Exiles) Combat | -11 -10 -10 -10 -------- Run | Scr Mat Min Exi Damage Taken 1607 | . 198 293 1116 Core 266 | . 19 13 234 Absorbed by Shields . | . . . . Core Remaining (%) 100 | 100 . . . Volleys Fired 85 | . 35 12 38 Largest 2 | . 2 1 2 Hottest 120 | . 78 39 120 Shots Fired 114 | . 63 12 39 Gun 20 | . 12 . 8 Cannon 80 | . 48 1 31 Launcher 14 | . 3 11 . Special . | . . . . Kinetic 77 | . 60 1 16 Thermal 18 | . . . 18 Explosive 14 | . 3 11 . Electromagnetic 5 | . . . 5 Robot Hit Streak 7 | . 7 2 5 Robot Miss Streak 4 | . 4 2 2 Penetration Max . | . . . . Secondary Targets . | . . . . Shots Hit Robots 61 | . 34 4 23 Core Hits 38 | . 17 11 10 Critical Kills . | . . . . Critical Parts Destroyed . | . . . . Critical Strikes 3 | . 2 . 1 Blast 3 | . 2 . 1 Melee Attacks . | . . . . Impact . | . . . . Slashing . | . . . . Piercing . | . . . . Sneak Attacks . | . . . . Combat Hostiles . | . . . . Follow-up Attacks . | . . . . Damage Inflicted 1688 | . 814 482 392 Guns 144 | . 74 . 70 Cannons 725 | . 582 . 143 Explosions 819 | . 158 482 179 Melee . | . . . . Ramming . | . . . . Kinetic 831 | . 656 . 175 Thermal 30 | . . . 30 Explosive 640 | . 158 482 . Electromagnetic 187 | . . . 187 Impact . | . . . . Slashing . | . . . . Piercing . | . . . . Highest Corruption 12 | . . . 12 Average Corruption 9 | . . . 9 Corruption Purged . | . . . . Effects 8 | . . . 8 Message Errors 2 | . . . 2 Matter Fused 3 | . . . 3 Energy Discharges 1 | . . . 1 Parts Rejected 1 | . . . 1 Data Loss (major) 1 | . . . 1 Overload Shots . | . . . . Overflow Damage 38 | . 23 15 . Projectiles 23 | . 23 . . Explosions 15 | . . 15 . Melee . | . . . . Knockbacks 14 | . 13 . 1 Impact . | . . . . Kinetic 14 | . 13 . 1 Secondary . | . . . . Self-Inflicted Damage 173 | . . 173 . Shots 6 | . . 6 . Rammed . | . . . . Targets Rammed . | . . . . Kicked . | . . . . Crushed . | . . . . Highest Temperature 320 | . 310 4 320 Average Temperature 104 | . 93 3 127 Received Heat Transfer 57 | . 57 . . Effects 2 | . 1 . 1 Energy Bleed 1 | . 1 . . Short Circuit 1 | . . . 1 Siege Activations . | . . . . Robots Corrupted . | . . . . Combat Hostiles . | . . . . Parts Fried . | . . . . Impact Corruptions . | . . . . Robots Melted . | . . . . Combat Hostiles . | . . . . Parts Melted . | . . . . Heat Transferred 145 | . . . 145 Parts Sabotaged . | . . . . Parts Stolen . | . . . . Parts Stripped . | . . . . Power Chain Reactions . | . . . . Missiles Intercepted . | . . . . Latent Energy Used 698 | . . . 698 LE Corruption 12 | . . . 12 Alert | -11 -10 -10 -10 ------- Run | Scr Mat Min Exi Peak Influence 283 | . 283 245 . Initial 9 | . . 9 . Average 121 | . 138 100 . Maximum Alert Level 1 | . 1 1 . Low Security (%) 90 | 100 88 92 . Level 1 9 | . 11 7 . Level 2 . | . . . . Level 3 . | . . . . Level 4 . | . . . . Level 5 . | . . . . High Security . | . . . . Max Security . | . . . . Squads Dispatched 1 | . 1 . . Investigation . | . . . . Extermination . | . . . . Reinforcement 1 | . 1 . . Assault . | . . . . Garrison . | . . . . Intercept . | . . . . Construction Impeded . | . . . . Haulers Reinforced . | . . . . Active Scanning Responses . | . . . . Cargo Convoy Interrupts . | . . . . Stealth | -11 -10 -10 -10 --------- Run | Scr Mat Min Exi Distress Signals 1 | . 1 . . Communications Jammed . | . . . . Distress Signals . | . . . . Times Spotted 31 | . 14 9 8 Peak Tracking Total 9 | . 3 3 9 Tactical Retreats . | . . . . Traps | -11 -10 -10 -10 ------- Run | Scr Mat Min Exi Traps Triggered . | . . . . Indirectly . | . . . . Trap Hack Attempts . | . . . . Triggered . | . . . . Disarmed . | . . . . Reprogrammed . | . . . . Reused . | . . . . Traps Extracted . | . . . . Installed . | . . . . Triggered . | . . . . Machines | -11 -10 -10 -10 ---------- Run | Scr Mat Min Exi Machines Disabled 7 | . 1 4 2 Max in Single Turn 2 | . 1 2 1 Machines Sabotaged . | . . . . Garrisons Compromised . | . . . . Overloaded Fab Kills . | . . . . Fab Network Shutdowns . | . . . . Hacking | -11 -10 -10 -10 --------- Run | Scr Mat Min Exi Machines Accessed 12 | . 6 1 5 Terminals 6 | . 5 1 . Fabricators . | . . . . Repair Stations . | . . . . Recycling Units 1 | . 1 . . Scanalyzers . | . . . . Garrison Access . | . . . . Total Hacks 84 | . 25 9 50 Successful 66 | . 11 5 50 Failed 18 | . 14 4 . Catastrophic 1 | . 1 . . Database Lockouts . | . . . . Manual 19 | . 11 7 1 Terminals 29 | . 20 9 . Fabricators . | . . . . Repair Stations . | . . . . Recycling Units 5 | . 5 . . Scanalyzers . | . . . . Garrison Access . | . . . . Terminal Hacks 61 | . 9 2 50 Record 49 | . . . 49 Robot Analysis 3 | . 3 . . Emergency Access Points 1 | . 1 . . Terminal Index 1 | . 1 . . Locate Traps 1 | . 1 . . Dispatch Records 1 | . . 1 . Transport Status 1 | . 1 . . Hauler Manifests 1 | . 1 . . Registered Components 1 | . 1 . . Zone Layout 1 | . . 1 . EX-Prototype ID Bank 1 | . . . 1 Fabricator Hacks . | . . . . Repair Station Hacks . | . . . . Recycling Unit Hacks 1 | . 1 . . Retrieve Matter 1 | . 1 . . Scanalyzer . | . . . . Garrison Access Hacks . | . . . . Unauthorized Hacks 4 | . 1 3 . Terminals 3 | . . 3 . Track 1 | . . 1 . Disrupt 1 | . . 1 . Operators 1 | . . 1 . Fabricators . | . . . . Repair Stations . | . . . . Recycling Units 1 | . 1 . . Monitor 1 | . 1 . . Scanalyzers . | . . . . Garrison Access . | . . . . Data Cores Recovered . | . . . . Used . | . . . . Hacking Detections 8 | . 7 1 . Full Trace Events . | . . . . Feedback Events . | . . . . Feedback Blocked . | . . . . Robot Schematics Acquired . | . . . . Robots Built . | . . . . Matter . | . . . . Time . | . . . . Total Robot Build Rating . | . . . . Part Schematics Acquired . | . . . . Parts Built . | . . . . Matter . | . . . . Time . | . . . . Total Part Build Rating . | . . . . Parts Repaired . | . . . . Time . | . . . . Parts Recycled . | . . . . Recycled Matter . | . . . . Retrieved Matter 100 | . 100 . . Retrieved Components . | . . . . Parts Scanalyzed . | . . . . Part Schematics Acquired . | . . . . Parts Damaged . | . . . . Bothacking | -11 -10 -10 -10 ------------ Run | Scr Mat Min Exi Used RIF Installer . | . . . . Robots Hacked . | . . . . Non-combat . | . . . . Combat . | . . . . Robot Hacks Applied . | . . . . Relay Couplers Released . | . . . . Robots Rewired . | . . . . Allies Hacked . | . . . . Hacks Repelled . | . . . . Allies | -11 -10 -10 -10 -------- Run | Scr Mat Min Exi Total Allies 3 | . . 3 . Largest Group 3 | . . 3 . Highest-Rated Group 40 | . . 40 . Highest-Rated Ally 16 | . . 16 . Total Orders . | . . . . Ally Attacks 25 | . . 15 10 Total Damage 679 | . . 132 547 Kills 7 | . . 3 4 Allies Corrupted . | . . . . Allies Melted . | . . . . Turrets Deployed 3 | . . . 3 Intel | -11 -10 -10 -10 ------- Run | Scr Mat Min Exi Robot Analysis Total 3 | . 3 . . Derelict Logs Recovered 2 | . . 2 . Drone Launches . | . . . . Drone Recoveries . | . . . . Exploration | -11 -10 -10 -10 ------------- Run | Scr Mat Min Exi Turns Passed 2643 | 8 819 624 1192 Spaces Moved 1964 | 5 541 476 942 Core . | . . . . Treads 37 | . . 17 20 Legs 3 | 3 . . . Wheels 1924 | 2 541 459 922 Hover . | . . . . Flight . | . . . . Fastest Speed 100 | 100 100 105 105 Average Speed 114 | 112 117 117 110 Slowest Speed 260 | 120 130 260 260 Overloaded Moves . | . . . . Propulsion Burnouts . | . . . . Robots Hopped . | . . . . Cave-ins Triggered . | . . . . Exploration Rate (%) 65 | 2 90 76 94 Regions Visited 3 Branch Regions 2 Pre-discovered Areas 3 | . . 2 1 Known Exits Taken . | . . . . Unknown Exits Taken 3 | 1 1 1 . Scrap Searched 1 | . . 1 . Spaces Dug 6 | . . 6 . Terrain Destroyed 108 | . 14 61 33 Melee . | . . . . Projectile 4 | . 3 . 1 AOE 104 | . 11 61 32 Terrain Rammed . | . . . . Walls Destroyed . | . . . . Machines Disabled . | . . . . Actions | -11 -10 -10 -10 --------- Run | Scr Mat Min Exi Total 2250 | 6 662 527 1055 Wait 87 | . 34 26 27 Move 1961 | 4 540 475 942 Hop . | . . . . Pick Up 36 | . 18 5 13 Fast Attach 10 | . 7 . 3 Attach 10 | . 1 2 7 Detach 4 | . 1 . 3 Swap 28 | 2 11 6 9 Drop 29 | . 15 1 13 Fire 85 | . 35 12 38 Melee . | . . . . Ram . | . . . . Kick . | . . . . Crush . | . . . . Escape Stasis . | . . . . Rewire . | . . . . Trap . | . . . . Miscellaneous . | . . . . Route ------- -11/Scrapyard -10/Materials (discovered 5 exits: [*Mat x3] / *Min x2) -10/Mines (discovered 3 exits: [*Mat x2] / *Exi) -10/Exiles (discovered 2 exits: [*Min x2]) History --------- Turn | Location | Event 1 | -11/Scrapyard | Discovered new exit (range 1) 9 | -11/Scrapyard | Entered Materials 9 | -10/Materials | Discovered new exit (range 7) 219 | -10/Materials | Discovered new exit (range 14) 318 | -10/Materials | Build established: Mutant 456 | -10/Materials | Discovered new exit (range 15) 558 | -10/Materials | Discovered new exit (range 16) 733 | -10/Materials | Discovered new exit (range 8) 828 | -10/Materials | Entered Mines 834 | -10/Mines | Assisted by bots powering up and referring to "LRC-V3" 869 | -10/Mines | Learned location of Storage (-9) 964 | -10/Mines | Discovered new exit (range 8) 1091 | -10/Mines | Deemed a non-threat by the Exiles lab entrance 1092 | -10/Mines | Discovered new exit (range 5) 1159 | -10/Mines | Learned location of Zion (-6) 1223 | -10/Mines | Lost 3 parts (1n1u1w) 1242 | -10/Mines | Discovered new exit (range 12) 1259 | -10/Mines | Received a Rocket Launcher from a helpful Derelict 1452 | -10/Mines | Entered Exiles 1466 | -10/Exiles | Discovered new exit (range 15) 1487 | -10/Exiles | Met 8R-AWN 1504 | -10/Exiles | Met EX-HEX 1542 | -10/Exiles | Met EX-BIN 1632 | -10/Exiles | Aligned with FarCom system 1633 | -10/Exiles | Given EX-Vault access code 1657 | -10/Exiles | Opened EX-Vault 1663 | -10/Exiles | Found Prototype Energy Cannon 1663 | -10/Exiles | Identified Gui. Plasma Cannon 1668 | -10/Exiles | Found Prototype Energy Cannon 1668 | -10/Exiles | Identified Latent Energy Streamer 1703 | -10/Exiles | Warned to stay clear of 0b10 Research branches 1730 | -10/Exiles | Met EX-DEC 1896 | -10/Exiles | Visited The Gauntlet 2090 | -10/Exiles | Discovered new exit (range 10) 2303 | -10/Exiles | Found Deploy-a-Sentry 2305 | -10/Exiles | Found Deploy-a-Sentry 2307 | -10/Exiles | Found Deploy-a-Sentry 2344 | -10/Exiles | DAS Turret deployed 2353 | -10/Exiles | DAS Turret deployed 2360 | -10/Exiles | DAS Turret deployed 2375 | -10/Exiles | Attacked by the Exiles 2379 | -10/Exiles | Allies destroyed EX-BIN 2466 | -10/Exiles | Core integrity fell below 50% 2469 | -10/Exiles | System corruption reached 10% 2518 | -10/Exiles | Core integrity fell below 20% 2530 | -10/Exiles | Lost 4 parts (1p2n1w) 2566 | -10/Exiles | Found Prototype Ballistic Gun 2567 | -10/Exiles | Identified 8R-AWN's Boregun 2644 | -10/Exiles | Destroyed by 8R-AWN with 8R-AWN's Boregun Last Messages --------------- 02589_ Acquired 9 matter. 02592_ Acquired 13 matter. 02594_ Penetrated by HV Slug. 02594_ HV Slug penetrates Wall. 02594_ Acquired 8 matter. 02595_ Acquired 1 matter. 02597_ Acquired 8 matter. 02597_ HV Slug penetrates Wall. 02601_ Penetrated by HV Slug. 02630_ System corrupted: Matter fused (-9). 02630_ HV Slug penetrates Wall. 02634_ Penetrated by HV Slug. 02634_ Wheel destroyed. 02634_ HV Slug penetrates Machine. 02634_ Machine disabled. 02637_ Penetrated by HV Slug. 02637_ HV Slug penetrates Machine. 02641_ Penetrated by HV Slug. 02641_ HV Slug penetrates Machine. 02644_ Penetrated by HV Slug. Map ----- +----------------------------------------------------+ | ???????#""X" ##?????????????????????????? | | ???????#" t ##????????????????????????? | | ???????#" # #????????????????????????? | | ???????#""""""# ########?????????????????? | | ???????##"##### """""""#?????????????????? | | ??????? "????# """""""#?????????????????? | | ?????#"""????## """""""#?????????????????? | | ?????#"""????#;; ;"" """"#?????????????????? | | ?????????????#; """"#?????????????????? | | ?????????????#; """#?????????????????? | | ?????????????#; """#?????????????????? | | ?????????????#; """#?????????????????? | | #######??????## """#?????????????????? | | """#???????#" ""##????????????????? | | "" """#???????## " """????????????????? | | "" #????????# """##????????????????? | | "" #????????# "X" """""????????????????? | | "" "#????????# % % """ # ????????????????? | | ""#????????# " """ """#?????????????????? | | "" ""#???????##" ###########?????????????????? | | ## ###??????##"" #???????????????????????????? | | ## ###?######"" #???????????????????????????? | | X# #"###""""""" ##??????????????????????????? | | """""" " "" ##???###########???????????? | | "" """ " #####"""""""""##??????????? | | " " g @ """"##?????????? | | "" " #?????????? | | " """#?????????? | | " "#?????????? | | " "##????????? | | ""###??????? | | """""" """#??????# | | ######""" "#????### | | ""##????#####""" ##???# | | """##?????????##""" ##?## | | """##???????????#"""" ### | | ""#???????????##"" | | ########??####"""" | | ## ####""" " | | """" #""" | | ##### | | ##???? | | " ##????? | | " "" """ ""#?????? | | ""## ##""" " " ""#" "##?????? | | ""#### ######""" """##"""""""##??????? | | """"##??# #????###""""###########???????? | | """#??## ####???######?????????????????? | | ""##??#! "!#??????????????????????????? | | """##???#" !#??????????????????????????? | +----------------------------------------------------+ Best States ------------- Heat Dissipation 47 Energy Generation 14 Energy Capacity 250 Matter Stores 300 Matter Capacity 300 Sight Range 16 Terrain Scan Density 10 Armor Coverage 225 Evasion (%) 40 Recoil Reduction 2 Item Schematics ----------------- None Robot Schematics ------------------ None Fabricated ------------ Nothing Alien Tech Used ----------------- None Achievements -------------- None Challenges ------------ None Game ------ Seed ActiveSwordSystem Manual? 0 Play Time 00:41:27 Cumulative 77.6 hours Start 2021.10.08 @ 23:39:10 End 2021.10.13 @ 20:16:49 Sessions 5 Manual Loads 0 Difficulty Rogue Special Mode None Game No. 52 Rogue 51 Adventurer 1 Explorer 0 Win Type - Total 2 Types 2/0/0/0/0/0/0/0/0 Lore% 37 Gallery% 45 Achievement% 41 Wizard Run 0 Options --------- ASCII 0 Keyboard 1 Movement Vi Keybinds 0 Fullscreen 2 Font 18/TerminusBold Map View 76x50 Tactical HUD 1 Map Filters NONE Filters NONE Steam 1 RUN: e66aa93c-3959-4bd2-8303-2685a851fbd0